Cogmind - Beta 14 @@@ ROGUE MODE // 2024.11.09 @ 10:31:22 Player: Fangrelle Result: Destroyed by GY-JPS(R) with Subdweller Machine Gun Performance ------------- Evolutions (0) 0 Regions Visited (2) 400 Robots Destroyed (42) 210 Value Destroyed (1043) 1043 Prototype IDs (0) 0 Alien Tech Used (0) 0 Bonus (-39) -39 TOTAL SCORE: 1614 Bonus ------- Friendly Fire -39 Cogmind --------- Core Integrity 0/250 Matter 31/300 Energy 99/100 System Corruption 0% Temperature Cool (0) Movement Rolling (140) Ox4 Location -10/Subcaves Parts ------- > --- POWER (1) -------- (None) > --- PROPULSION (2) --- Spiked Treads Wheel > --- UTILITY (2) ------ High-capacity Storage Unit Terrain Scanner > --- WEAPON (2) ------- Rocket Launcher Mining Laser > --- INVENTORY (20) --- High-capacity Matter Pod (200) High-capacity Matter Pod (0) Subdweller Optics Sensor Array Light EM Pulse Cannon Light EM Pulse Cannon Autogun Autogun Autogun Autogun Battle Cannon Grenade Launcher Grenade Launcher Grenade Launcher Grenade Launcher Rocket Launcher Rocket Launcher Rocket Launcher Peak State ------------ > --- POWER ------------ Ion Engine > --- PROPULSION ------- Light Treads Light Treads > --- UTILITY ---------- High-capacity Storage Unit Seismic Detector > --- WEAPON ----------- Light EM Pulse Cannon Light EM Pulse Cannon > --- INVENTORY -------- Wheel High-capacity Matter Pod Power Shielding Light EM Pulse Cannon Light EM Pulse Cannon Autogun Autogun Autogun Autogun Light Cannon Grenade Launcher Grenade Launcher Grenade Launcher Grenade Launcher Rocket Launcher Rocket Launcher Rocket Launcher Rocket Launcher Mining Laser Mining Claw [Rating: 12] Favorites ----------- Power Ion Engine Engine Ion Engine Propulsion Light Treads Treads Light Treads Leg Aluminum Leg Wheel Wheel Utility High-capacity Storage Unit Device Sensor Array Storage High-capacity Storage Unit Weapon Light EM Pulse Cannon Energy Cannon Light EM Pulse Cannon Ballistic Gun Autogun Ballistic Cannon Light Cannon Launcher Rocket Launcher Special Weapon Mining Laser Build | -11 -10 -10 ------- Run | Yrd Mat Sub Slots Evolved . | . . . Power . | . . . Propulsion . | . . . Utility . | . . . Weapon . | . . . Parts Attached 41 | 6 15 20 Power 2 | 1 1 . Engine 2 | 1 1 . Core . | . . . Reactor . | . . . Propulsion 9 | 2 5 2 Treads 5 | . 4 1 Leg 2 | 2 . . Wheel 2 | . 1 1 Hover . | . . . Flight . | . . . Utility 9 | 1 3 5 Device 7 | . 2 5 Storage 2 | 1 1 . Processor . | . . . Hackware . | . . . Protection . | . . . Artifact . | . . . Weapon 21 | 2 6 13 Energy Gun . | . . . Energy Cannon 6 | . 4 2 Ballistic Gun 6 | 2 1 3 Ballistic Cannon 1 | . 1 . Launcher 5 | . . 5 Special Weapon 3 | . . 3 Impact Weapon . | . . . Slashing Weapon . | . . . Piercing Weapon . | . . . Special Melee Weapon . | . . . Unidentified Prototypes . | . . . Parts Lost 6 | . 4 2 Power 2 | . 1 1 Propulsion 2 | . 1 1 Utility . | . . . Weapon 2 | . 2 . Highest Loss Streak 3 | . 3 1 To Critical Strikes . | . . . Average Slot Usage (%) 89 | . 97 82 Engine 8 | . 13 2 Treads 19 | . 23 15 Wheel 7 | . 3 11 Device 11 | . 12 10 Storage 14 | . 14 14 Energy Cannon 12 | . 24 . Ballistic Gun 3 | . 2 3 Launcher 9 | . . 18 Special Weapon 2 | . . 4 Peak Build Rating 12 | 6 12 12 Average Rating 10 | 4 10 11 On Entrance 5 | . 6 11 Naked Turns . | . . . Heaviest Build 58 | 14 58 55 Greatest Support 40 | 20 40 40 Greatest Overweight (x) 5 | 1 2 5 Average Overweight (x) 2 | . 1 3 Largest Inventory Capacity 20 | 8 20 20 Average Capacity 19 | 6 18 20 Most Carried 20 | 5 20 20 Average Carried 17 | 3 17 18 Final Capacity 20 | 8 20 20 Final Carried 18 | 4 17 18 Class Distribution -------------------- 100% | Mutant Dominant Class ---------------- Mutant | -10/Materials Mutant | -10/Subcaves Resources | -11 -10 -10 ----------- Run | Yrd Mat Sub Matter Collected 1428 | 214 586 628 Remotely . | . . . Salvage Created 1156 | . 770 386 Parts 78 | . 48 30 Haulers Intercepted 1 | . 1 . Recyclers Shooed . | . . . Parts Field Recycled . | . . . Retrieved Matter . | . . . Parts Self-Destructed 15 | . . 15 Prevented . | . . . Kills | -11 -10 -10 ------- Run | Yrd Mat Sub Combat Hostiles Destroyed 32 | . 16 16 Guns 7 | . 4 3 Cannons 8 | . 7 1 AOE 15 | . 3 12 Classes Destroyed 9 | . 7 2 Worker 2 | . 2 . Hauler 1 | . 1 . Recycler 1 | . 1 . Operator 1 | . 1 . Turret 2 | . . 2 Watcher 3 | . 3 . Swarmer 12 | . 6 6 Grunt 10 | . 10 . Subdweller 10 | . . 10 Best Kill Streak 6 | . 3 6 Combat Bots Only 4 | . 3 4 Max Kills in Single Turn 3 | . 2 3 Gunslinging . | . . . Exploded 3 | . 2 3 Melee . | . . . Uniques/NPCs Destroyed . | . . . Combat | -11 -10 -10 -------- Run | Yrd Mat Sub Hostile Shots Fired 139 | . 105 34 Missed 42 | . 33 9 Damage Taken 1330 | . 882 448 Core 256 | . 156 100 Absorbed by Shields . | . . . Core Remaining (%) 100 | 100 . . Volleys Fired 132 | . 59 73 Largest 2 | . 2 2 Hottest 136 | . 112 136 Shots Fired 212 | . 109 103 Gun 58 | . 47 11 Cannon 76 | . 62 14 Launcher 49 | . . 49 Special 29 | . . 29 Kinetic 66 | . 55 11 Thermal 39 | . . 39 Explosive 49 | . . 49 Electromagnetic 58 | . 54 4 Robot Hit Streak 8 | . 7 8 Robot Miss Streak 4 | . 4 3 Penetration Max . | . . . Secondary Targets 1 | . 1 . Max Gunslinging Chain 1 | . 1 . Shots Hit Robots 77 | . 57 20 Core Hits 62 | . 27 35 Critical Kills . | . . . Critical Parts Destroyed . | . . . Critical Strikes . | . . . Melee Attacks . | . . . Impact . | . . . Slashing . | . . . Piercing . | . . . Sneak Attacks . | . . . Combat Hostiles . | . . . Follow-up Attacks . | . . . Damage Inflicted 2810 | . 1426 1384 Guns 419 | . 347 72 Cannons 1021 | . 852 169 Explosions 1346 | . 227 1119 Melee . | . . . Ramming . | . . . Kinetic 455 | . 383 72 Thermal 282 | . 146 136 Explosive 1119 | . . 1119 Electromagnetic 954 | . 897 57 Impact . | . . . Slashing . | . . . Piercing . | . . . Highest Corruption . | . . . Average Corruption . | . . . Corruption Purged . | . . . Corruption Blocked . | . . . Overload Shots . | . . . Overflow Damage 50 | . 50 . Projectiles 34 | . 34 . Explosions 16 | . 16 . Melee . | . . . Knockbacks 1 | . 1 . Impact . | . . . Kinetic 1 | . 1 . Secondary . | . . . Self-Inflicted Damage 152 | . 118 34 Shots 5 | . 3 2 Rammed . | . . . Targets Rammed . | . . . Kicked . | . . . Crushed . | . . . Highest Temperature 204 | . 204 54 Average Temperature 50 | . 53 25 Received Heat Transfer 336 | . 249 87 Siege Activations . | . . . Robots Corrupted 2 | . 2 . Combat Hostiles 2 | . 2 . Parts Fried 7 | . 7 . Impact Corruptions . | . . . Robots Melted . | . . . Combat Hostiles . | . . . Parts Melted 3 | . 1 2 Heat Transferred 348 | . 150 198 Parts Sabotaged . | . . . Parts Stolen . | . . . Parts Stripped . | . . . Power Chain Reactions 4 | . 4 . Alert | -11 -10 -10 ------- Run | Yrd Mat Sub Peak Influence 218 | . 218 . Initial . | . . . Average 92 | . 94 . Maximum Alert Level 1 | . 1 . Low Security (%) 93 | 100 93 . Level 1 6 | . 6 . Level 2 . | . . . Level 3 . | . . . Level 4 . | . . . Level 5 . | . . . High Security . | . . . Max Security . | . . . Squads Dispatched 3 | . 3 . Investigation 2 | . 2 . Extermination . | . . . Reinforcement 1 | . 1 . Assault . | . . . Garrison . | . . . Intercept . | . . . Searches Triggered . | . . . Construction Impeded . | . . . Haulers Reinforced . | . . . Active Scanning Responses . | . . . Cargo Convoy Interrupts . | . . . Stealth | -11 -10 -10 --------- Run | Yrd Mat Sub Distress Signals . | . . . Communications Jammed . | . . . Distress Signals . | . . . Times Spotted 41 | . 28 13 Peak Tracking Total 3 | . 3 2 Tactical Retreats 3 | . 2 1 Traps | -11 -10 -10 ------- Run | Yrd Mat Sub Traps Triggered 3 | . 2 1 Indirectly . | . . . Trap Hack Attempts . | . . . Triggered . | . . . Disarmed . | . . . Reprogrammed . | . . . Reused . | . . . Traps Extracted . | . . . Installed 2 | . . 2 Triggered . | . . . Machines | -11 -10 -10 ---------- Run | Yrd Mat Sub Machines Disabled 5 | . 1 4 Max in Single Turn 3 | . 1 3 Machines Repaired . | . . . Machines Dismantled . | . . . Machines Sabotaged . | . . . Overloaded Fab Kills . | . . . Hacking | -11 -10 -10 --------- Run | Yrd Mat Sub Machines Accessed 10 | . 9 1 Terminals 7 | . 7 . Fabricators . | . . . Repair Stations . | . . . Recycling Units 2 | . 2 . Scanalyzers . | . . . Garrison Access . | . . . Total Hacks 29 | . 26 3 Successful 16 | . 13 3 Failed 12 | . 12 . Catastrophic 2 | . 2 . Database Lockouts 1 | . 1 . Manual 27 | . 27 . Terminals 24 | . 24 . Fabricators . | . . . Repair Stations . | . . . Recycling Units 2 | . 2 . Scanalyzers . | . . . Garrison Access . | . . . Terminal Hacks 7 | . 4 3 Record 3 | . . 3 Robot Analysis 1 | . 1 . Terminal Index 1 | . 1 . Zone Layout 2 | . 2 . Fabricator Hacks . | . . . Repair Station Hacks . | . . . Recycling Unit Hacks . | . . . Scanalyzer . | . . . Garrison Access Hacks . | . . . Unauthorized Hacks 9 | . 9 . Terminals 7 | . 7 . Assimilate 1 | . 1 . Botnet 5 | . 5 . Operators 1 | . 1 . Fabricators . | . . . Repair Stations . | . . . Recycling Units 2 | . 2 . Tunnel 2 | . 2 . Scanalyzers . | . . . Garrison Access . | . . . Data Cores Recovered . | . . . Used . | . . . Hacking Detections 7 | . 7 . Full Trace Events 2 | . 2 . Feedback Events . | . . . Feedback Blocked . | . . . Robot Schematics Acquired . | . . . Robots Built . | . . . Authchips . | . . . Time . | . . . Total Robot Build Rating . | . . . Part Schematics Acquired . | . . . Parts Built . | . . . Authchips . | . . . Time . | . . . Total Part Build Rating . | . . . Parts Repaired . | . . . Time . | . . . Parts Recycled . | . . . Recycled Matter . | . . . Retrieved Matter . | . . . Retrieved Components . | . . . Parts Scanalyzed . | . . . Part Schematics Acquired . | . . . Parts Damaged . | . . . Bothacking | -11 -10 -10 ------------ Run | Yrd Mat Sub Used RIF Installer . | . . . Robots Hacked . | . . . Non-combat . | . . . Combat . | . . . Robot Hacks Applied . | . . . Relay Couplers Released . | . . . Fabnet Peak Effective % . | . . . Robots Rewired . | . . . Allies Hacked . | . . . Hacks Repelled . | . . . Allies | -11 -10 -10 -------- Run | Yrd Mat Sub Total Allies 1 | . 1 . Largest Group 1 | . 1 . Highest-Rated Group 10 | . 10 . Highest-Rated Ally 10 | . 10 . Total Orders 1 | . 1 . STAY 1 | . 1 . Ally Attacks . | . . . Total Damage . | . . . Kills . | . . . Allies Corrupted . | . . . Allies Melted . | . . . Intel | -11 -10 -10 ------- Run | Yrd Mat Sub Robot Analysis Total 1 | . 1 . Derelict Logs Recovered 3 | . . 3 Drone Launches . | . . . Drone Recoveries . | . . . Exploration | -11 -10 -10 ------------- Run | Yrd Mat Sub Turns Passed 7079 | 81 3438 3560 Spaces Moved 3356 | 60 1202 2094 Core 11 | 11 . . Treads 1302 | . 1122 180 Legs 129 | 49 80 . Wheels 1914 | . . 1914 Hover . | . . . Flight . | . . . Fastest Speed 50 | 50 120 140 Average Speed 184 | 113 239 154 Slowest Speed 360 | 120 320 360 Overloaded Moves . | . . . Propulsion Burnouts . | . . . Robots Hopped . | . . . Cave-ins Triggered . | . . . Exploration Rate (%) 65 | 5 98 94 Regions Visited 2 Branch Regions 1 Pre-discovered Areas 3 | . 2 1 Known Exits Taken . | . . . Unknown Exits Taken 2 | 1 1 . Scrap Searched . | . . . Spaces Dug 1 | . . 1 Terrain Destroyed 250 | . 20 230 Melee . | . . . Projectile . | . . . AOE 250 | . 20 230 Terrain Rammed . | . . . Walls Destroyed . | . . . Machines Disabled . | . . . Actions | -11 -10 -10 --------- Run | Yrd Mat Sub Total 3981 | 70 1656 2255 Wait 394 | . 340 54 Move 3354 | 59 1201 2094 Hop . | . . . Pick Up 35 | 5 26 4 Fast Attach 15 | 5 7 3 Attach 8 | 1 3 4 Detach 2 | . . 2 Swap 18 | . 5 13 Drop 21 | . 15 6 Fire 132 | . 59 73 Melee . | . . . Ram . | . . . Kick . | . . . Crush . | . . . Escape Stasis . | . . . Rewire . | . . . Trap 2 | . . 2 Miscellaneous . | . . . Route ------- -11/Scrapyard -10/Materials (discovered 6 exits: [*Mat x3] / [*Min x2] / *Sub) -10/Subcaves (discovered 2 exits: [*Mat] / [*Rec]) History --------- Turn | Location | Event 5 | -11/Scrapyard | Discovered new exit (range 16) 82 | -11/Scrapyard | Entered Materials 311 | -10/Materials | Build established: Mutant 681 | -10/Materials | Central database locked down 748 | -10/Materials | Discovered new exit (range 16) 1127 | -10/Materials | Discovered new exit (range 11) 1233 | -10/Materials | Discovered new exit (range 6) 1354 | -10/Materials | Discovered new exit (range 16) 2048 | -10/Materials | Discovered new exit (range 16) 2636 | -10/Materials | Core integrity fell below 50% 2692 | -10/Materials | Lost 3 parts (1p1n1w) 3494 | -10/Materials | Discovered new exit (range 9) 3520 | -10/Materials | Entered Subcaves 4051 | -10/Subcaves | Shifting Twisted Machinery released Spk. Treads 4101 | -10/Subcaves | Shifting Twisted Machinery released Battle Cannon 4128 | -10/Subcaves | Learned Materials terminal intel 4303 | -10/Subcaves | Core integrity fell below 20% 4690 | -10/Subcaves | Discovered new exit (range 14) 4719 | -10/Subcaves | Discovered new exit (range 20) 4744 | -10/Subcaves | Shifting Twisted Machinery released Battle Cannon 4792 | -10/Subcaves | Visited Clippyterm 4797 | -10/Subcaves | Learned Research machine intel 5687 | -10/Subcaves | Learned 4 Materials zone layouts 6299 | -10/Subcaves | Learned location of Zion (-7) 6299 | -10/Subcaves | Met a Zionite searching for "candidates" 7070 | -10/Subcaves | Disturbed a concealed Subdweller 7080 | -10/Subcaves | Destroyed by GY-JPS(R) with Subdweller Machine Gun Last Messages --------------- 06130_ Dropped Broken Sub. Optics. 06222_ 06-ISJ(R) destroyed. 06227_ LI-DP6(R) affixes Scrap Shield Fragment to Scrap Shield. 06230_ The unstable cave ceiling collapses. 06230_ LI-DP6(R) destroyed. 06232_ The unstable cave ceiling collapses. 06242_ Scrap Shield Fragment crushed. 06245_ 4F-YFN(z): "She is not going to be happy we haven't found any suitable candidates yet." 06245_ Acquired 7 matter. 06247_ The unstable cave ceiling collapses. 06247_ Sub. Optics crushed. 06253_ The unstable cave ceiling collapses. 06299_ 4F-YFN(z): "Hey you! It's really dangerous down here, I feel that you could die at any moment. For your health and safety might I suggest a trip to Zion?" World map updated: -7/Zion. 06312_ The unstable cave ceiling collapses. 06354_ Y4-317(z) fiddles with the Twisted Machinery. 06373_ Acquired 13 matter. 06644_ AS-VH7(u) tweaks Twisted Machinery. 07006_ Subatomizers dissect the Disposable Heat Sink, destroying it. 07070_ GY-JPS(R) angrily emerges from the Twisted Machinery. Map ----- +----------------------------------------------------+ | ##???## #?## ## #### ##???????? | | #????## ##?# #### ## #???????? | | ######?### ### ### ###??# ##??????? | | ##?# ##### #### # ##### #??????? | | ##?# ## ### # ## #??????? | | ### ### & ## ##??????? | | ^ = #?# ### ##### ##???????? | | ##?## && # ###?###????????? | | ##???## # & & ## # ###??????????? | | ## #?????##### ### #??????????? | | #### #?????#??### ##### #??????????? | | ] ### #???????## #??# #??????????? | | ##?## #???????# ##### ##?????????? | | ##???# #???????##### ### # #?????????? | | #????# #???????##?# ##?????????? | | #????#### ##??????????## # ### ##?????????? | | ##???????# ##???????????# ####?# ##????????? | | ###??????# #????????????## ##???## #????????? | | " #??????# #?????????????# ###### #????????? | | ""#?????# #???????#?##### ## #????????? | | #?????? ##?????????## #????????? | | #?????? ##????#????## ##???????? | | #??????#??????###### ##??????? | | #?????????#??## "## #??????? | | ##????????????#"&# #< #??????? | | ##?????????????#& # R @ ## #??????? | | ??#????????????#$"# #< ## ##??????? | | ???????????????#$#### #???????? | | ?#?????????????##???### ##??????? | | ?????????????????????## #??????? | | ?????????????????????# ##??????? | | ??????????????????#??# ######???????? | | ?????????????????????# ##???????????? | | ?????????????????????## ##??????????? | | ????????????????#?????#### #??????????? | | ????????????????????????## #?????????? | | ???????????????????????## ## #??????? | | ???????????????????????# ## #??????? | | ??????????????????????## ## #??????? | | ??????????????????????# ### ##??????? | | ??#???????????????????# ##? ##???????? | | ?????????????????????## #?# ##????????? | | ????????????????????## ##??## ##?????????? | | ???????????????????## #?????####??????????? | | ???????????????????# ### #??????????????????? | | ??????????????????## #?# #?????????????????? | | ???###??????###?### ### #????????????????? | | ??## ?????## #?# #? ???????????????? | | #?# ???### #### ## ## ##??????????????? | | ??# # #### #?# ###?###???????????????? | +----------------------------------------------------+ Best States ------------- Heat Dissipation 25 Energy Generation 10 Energy Capacity 250 Matter Stores 300 Matter Capacity 300 Sight Range 21 Robot Scan Range 14 Terrain Scan Range 14 Terrain Scan Density 10 Evasion (%) 55 Recoil Reduction 2 Item Schematics ----------------- None Robot Schematics ------------------ None Fabricated ------------ Nothing Alien Tech Used ----------------- None Achievements -------------- None Challenges ------------ None Game ------ Seed BlastSystemScythe Manual? 0 Play Time 00:28:12 Cumulative 29.7 hours Start 2024.11.09 @ 10:05:08 End 2024.11.09 @ 10:31:22 Sessions 1 Manual Loads 0 Difficulty Rogue Special Mode None Game No. 62 Rogue 62 Adventurer 0 Explorer 0 Win Type - Total 0 Types 0/0/0/0/0/0/0/0/0 Lore% 29 Gallery% 26 Achievement% 28 Wizard Run 0 Options --------- Layout 0 ASCII 0 Keyboard 0 Movement Mouse Keybinds 0 Fullscreen 1 Font 24/Smallcaps Map View 183x50 Zoom Use 29% Tactical HUD 1 Map Filters NONE Filters NONE Steam 1 RUN: 581d1e17-f13a-4143-bb34-a7f2dd93ec37